{"text_format":"1","workbook":"xlsx","n_sheets":8,"sheets":["Conseils d'utilisation","Déclaration 2020 sur 2021","Déclaration 2021 sur 2022","Déclaration 2022 sur 2023","Déclaration 2023 sur 2024","Déclaration 2024 sur 2025","Déclaration 2025 sur 2026","Paramètres"],"not_rendered":{"charts":4,"images":17,"macros":1,"external_links":0,"defined_names":76,"comments":6,"pivot_tables":0},"unopened":[],"bounds":{"document_bytes":16777216,"sheet_cells":100000,"rows_first":2000,"rows_last":500,"rows_between":2000,"halvings":0,"cell_chars":16384,"cell_head_chars":4096},"cells_cut":0,"cells_raw":0,"read":"whole","date_system":"1900"}

{"sheet":"Conseils d'utilisation","index":0,"n_rows":87,"n_cols":14,"rows_kept":87,"cut":false,"hidden":false,"merged":[[7,14,7,15],[7,16,7,17],[7,8,7,9],[91,2,91,9],[7,6,7,7],[7,4,7,5],[7,2,7,3],[7,10,7,11],[7,12,7,13],[84,2,85,20],[86,2,86,5]]}
[]
[]
[]
[]
[]
[]
[]
[]
[]
[]
[]
[null,null,"Comment ça marche ?"]
[]
[null,null,"Vous avez des cases de différentes couleurs :"]
[]
[null,null,"Intitulé des questions",null,null,"Blanches "]
[]
[null,null,"Données à saisir ",null,null,"Orange"]
[]
[]
[]
[null,null,"Données calculées automatiquement suite à la saisie de l'utilisateur",null,null,null,null,"Grises"]
[null,null,"Cette zone est non modifiable car n'attend pas de saisie de la part de l'utilisateur."]
[]
[]
[]
[null,null,"Le simulateur est composé de 17 questions"]
[]
[null,null,"Vous avez :"]
[null,null,"- Dans toute la partie gauche, les questions posées et données à saisir"]
[null,null,"- Dans la partie droite, les montants de déduction alimentées en fonction de vos réponses (cellules non-modifiables)"]
[]
[]
[null,null,"Le simulateur est alimenté dès lors que vous saisissez l'effectif de votre entreprise."]
[null,null,"Cette donnée est le moteur du simulateur."]
[]
[null,null,"Tout au long de cette simulation, vous aurez une aide dans les commentaires identifiable par une encoche rouge"]
[]
[]
[null,null,"Aux questions II et III, des cases ont été cochées par défaut, si celles-ci ne correspondent pas à votre situation, merci de corriger",null,null,null,null,null,null,null,null,null,null,"Un message d'erreur peut apparaître lors de votre saisie, par exemple lorsque 2 cases ont été cochées."]
[null,null,"(Dans cet exemple, il ne s'agit que de la question III)",null,null,null,null,null,null,null,null,null,null,"Pour un calcul correct du montant de votre contribution, ne cocher qu'une seule case."]
[]
[]
[]
[]
[]
[]
[]
[]
[]
[]
[]
[]
[null,null,"Point de vigilance à la question : V. Contribution nette après écrêtement "]
[]
[]
[]
[]
[]
[]
[]
[null,null,"La réponse à cette question est obligatoire car, elle permet au simulateur d'appliquer l'écrêtement."]
[]
[]
[null,null,"Quelle différence avec le simulateur en ligne ?"]
[]
[null,null,"La différence avec le simulateur en ligne est l'accès : "]
[]
[null,null,"- aux calculs du simulateur (en cliquant sur une des cellules grises)"]
[]
[]
[null,null,null,null,null,null,"=>"]
[]
[null,null,"- ainsi qu'à l'onglet \"paramètres\" du simulateur"]
[]
[]
[]
[]
[]
[null,null,null,"A partir de la déclaration 2023 et en attendant qu'une nouvelle version du simulateur soit disponible sur notre site, vous pourrez mettre à jour les données relatives au SMIC et à l'objectif d'emploi depuis l'onglet \"Paramètres\"."]
[null,null,null,"Suivez ce pictogramme qui vous indiquera sur quelle déclaration cette mise à jour est possible."]
[]
[]
[]
[null,null,"Nous vous recommandons d'utiliser la version en ligne pour bénéficier de conseils personnalisés et de l'ensemble des informations utiles pour calculer et déclarer votre contribution. Des mises à jour peuvent être faites sur ce simulateur excel. Par conséquent, nous vous recommandons de vérifier à chaque utilisation que vous disposez bien de la dernière version."]
[]
[null,null,"https://www.agefiph.fr/employeur/simulateur_doeth"]

{"sheet":"Déclaration 2020 sur 2021","index":1,"n_rows":113,"n_cols":14,"rows_kept":113,"cut":false,"hidden":false,"merged":[[9,0,9,4],[93,8,93,9],[104,12,106,12],[40,8,41,12],[89,8,89,12],[91,8,91,9],[92,8,92,9],[66,8,66,9],[68,8,68,9],[46,8,46,9],[59,8,59,9],[85,8,85,12],[98,8,99,12],[78,8,78,9],[81,8,81,9],[77,8,77,9],[80,8,80,9],[75,8,75,9],[74,8,74,9],[60,8,60,9],[62,8,62,9],[63,8,63,9],[65,8,65,9],[3,5,4,12],[14,8,14,12],[69,8,69,9],[71,8,71,9],[72,8,72,9],[20,8,20,9],[25,8,25,9],[33,8,34,12],[36,8,36,9],[43,8,43,9]]}
[]
[]
[]
[null,null,null,null,null,"Dans un souci de maintien et suivi des mises à jour du simulateur, il est recommandé de s’adresser exclusivement à l’Agefiph et pour toute question sur ce fichier merci de contacter reformeoeth@agefiph.asso.fr"]
[]
[]
[null,null,null,"<<",null,null,null,null,null,null,null,null,null,">>"]
[]
[null,null,null,null,null,null,null,null,null,null,"Année d'exercice :",null,2020]
["Accès onglets",null,null,null,null,null,null,null,"Effectif Moyen Annuel de l'entreprise",null,null,null,"Objectif d'emploi de travailleurs handicapés"]
[null,null,null,null,null,null,null,null,null,{"$f":"IF(I11<20,\"L'effectif saisi doit être supérieur ou égal à 20\",\"\")","v":"L'effectif saisi doit être supérieur ou égal à 20"},null,null,{"$f":"IF(I11<20,0,ROUNDDOWN(I11*Objemploi,0))","v":0}]
[]
[]
[]
[null,null,null,null,null,null,null,null,"I . Calcul de l'effectif moyen annuel de bénéficiaire(s) de l'obligation d'emploi "]
[]
[null,null,null,null,null,null,null,null,null,null,null,null,"Nombre BOETH total employés"]
[null,null,null,null,null,null,null,null,null,null,null,null,{"$f":"ROUND(I23+ROUND((J23*Survalo),2)+I28+ROUND((J28*Survalo),2),2)","v":0}]
[]
[]
[null,null,null,null,null,null,null,null,"Effectifs de BOETH dans l'entreprise",null,null,null,"Montant de la déduction lié à l'embauche de bénéficiaire(s) âgé(s) de MOINS de 50 ans"]
[null,null,null,null,null,null,null,null,"=>âgés de moins de 50 ans","=>âgés de 50 ans et plus",null,null,{"$f":"ROUND(IFERROR(I23*Coefficient_2020*SHB_2020,0),2)","v":0}]
[null,null,null,null,null,null,null,null,null,null,null,null,"Montant de la déduction lié à l'embauche de bénéficiaire(s) âgé(s) de 50 ans et PLUS"]
[null,null,null,null,null,null,null,null,null,null,null,null,{"$f":"ROUND(IFERROR(J23*Survalo*Coefficient_2020*SHB_2020,0),2)","v":0}]
[]
[null,null,null,null,null,null,null,null,"Bénéficiaires de l'OETH intérimaires ou mis à disposition dans l'entreprise",null,null,null,"Montant de la déduction lié à l'embauche de bénéficiaire(s) externe(s) âgé(s) de MOINS de 50 ans"]
[null,null,null,null,null,null,null,null,"=>âgés de moins de 50 ans","=>âgés de 50 ans et plus",null,null,{"$f":"ROUND(IFERROR(I28*Coefficient_2020*SHB_2020,0),2)","v":0}]
[null,null,null,null,null,null,null,null,null,null,null,null,"Montant de la déduction lié à l'embauche de bénéficiaire(s) externe(s) âgé(s) de 50 ans et PLUS"]
[null,null,null,null,null,null,null,null,null,null,null,null,{"$f":"ROUND(IFERROR(J28*Survalo*Coefficient_2020*SHB_2020,0),2)","v":0}]
[]
[null,null,null,null,null,null,null,null,null,null,null,null,"Taux d'emploi"]
[null,null,null,null,null,null,null,null,null,null,null,null,{"$f":"ROUND(IF(ISERROR(('Déclaration 2020 sur 2021'!M18/'Déclaration 2020 sur 2021'!I11)*100),0,('Déclaration 2020 sur 2021'!M18/'Déclaration 2020 sur 2021'!I11)*100),2)","v":0},"%"]
[]
[null,null,null,null,null,null,null,null,"II . Mise en place d'un accord agrée d'entreprise, de groupe ou de branche sur l'emploi des personnes handicapées"]
[]
[]
[null,null,null,null,null,null,null,null,"Votre entreprise est-elle concernée par un accord agréé ?",null,null,null,"Accord"]
[null,null,null,null,null,null,null,null,null,null,null,null,{"$f":"IF(AccordOui=TRUE,\"Oui\",IF(AccordNon=TRUE,\"Non\",IF(AND(AccordNon=FALSE,AccordOui=FALSE),\"Vous devez coché une case\",\"\")))","v":"Non"}]
[null,null,null,null,null,null,null,null,{"$f":"IF(AND(AccordNon=TRUE,AccordOui=TRUE),\"Une seule case doit être cochée\",\"\")","v":""}]
[]
[null,null,null,null,null,null,null,null,"III . Détermination du coefficient de l'entreprise "]
[]
[]
[null,null,null,null,null,null,null,null,"Avez-vous accueilli des BOETH au cours des 4 dernières années (depuis 2017)",null,null,null,"Nombre de BOETH manquants"]
[null,null,null,null,null,null,null,null,null,null,{"$f":"IF(AND(BOETH4ansNon=FALSE,BOETH4ansOui=FALSE),\"Veuillez cocher une case\",IF(AND(BOETH4ansNon=TRUE,BOETH4ansOui=TRUE),\"Une seule case doit être cochée\",\"\"))","v":""},null,{"$f":"IF((M11-M18)<0,0,M11-M18)","v":0}]
[]
[null,null,null,null,null,null,null,null,{"$f":"\"Votre entreprise a-t-elle eu recours à des montant de sous-traitance avec le STPA au cours des 4 dernières années (depuis 2017) pour un montant minimum de \" & SHB_2020*600&\" €\"","v":"Votre entreprise a-t-elle eu recours à des montant de sous-traitance avec le STPA au cours des 4 dernières années (depuis 2017) pour un montant minimum de 6090 €"},null,null,null,"Coefficient de votre entreprise "]
[null,null,null,null,null,null,null,null,null,null,{"$f":"IF(AND(Sous_traitance4ansNon=FALSE,Sous_traitance4ansOui=FALSE),\"Veuillez cocher une case\",IF(AND(Sous_traitance4ansNon=TRUE,Sous_traitance4ansOui=TRUE),\"Une seule case doit être cochée\",\"\"))","v":""},null,{"$f":"Coefficient_2020","v":"Non assujetti"}]
[]
[]
[]
[null,null,null,null,null,null,null,null,"IV. Contribution brute avant déductions"]
[null,null,null,null,null,null,null,null,null,null,null,null,"Ce montant est à déclarer en DSN"]
[null,null,null,null,null,null,null,null,null,null,null,null,{"$f":"IFERROR(IF((M45*Coefficient_2020*SHB_2020)<0,0,M45*Coefficient_2020*SHB_2020),0)","v":0}]
[]
[]
[null,null,null,null,null,null,null,null,"V. Déductions"]
[]
[]
[null,null,null,null,null,null,null,null,"Effectif moyen annuel de personnes relevant d'un ECAP",null,null,null,"Montant de la déduction lié aux ECAP"]
[null,null,null,null,null,null,null,null,null,null,null,null,{"$f":"IF(I61>I11,\"L'effectif d'ECAP ne peut pas être supérieur à l'effectif total de l'entreprise\",I61*17*SHB_2020)","v":0}]
[]
[null,null,null,null,null,null,null,null,"Montant de sous traitance Esat/EA/TIH/EPS non plafonné\n(30% du coût de la main d'oeuvre)",null,null,null,"Montant de la déduction lié à la sous-traitance"]
[null,null,null,null,null,null,null,null,null,null,null,null,{"$f":"IF(AND(M32<3,I64>M54*SsTrait_Plaf_inf3),M54*SsTrait_Plaf_inf3,IF(AND(M32>=3,I64>M54*Sstrait_Plaf≥3),M54*Sstrait_Plaf≥3,I64))","v":0}]
[null,null,null,null,null,null,null,null,{"$f":"IF(AND(I64>=(600*SHB_2020),Sous_traitance4ansOui=FALSE),\"Cochez oui à la question de la sous-traitance, pour la détermination du coefficient\",\"\")","v":""}]
[null,null,null,null,null,null,null,null,"Dépenses liées à la réalisation de diagnostics et de travaux d'accessibilité pour les bénéficiaires de l'obligation d'emploi.\n",null,null,null,"Montant de la déduction lié aux dépenses directes"]
[null,null,null,null,null,null,null,null,null,null,null,null,{"$f":"IF(AND(AccordOui=TRUE,AccordNon=FALSE),0,IF(AND(AccordOui=FALSE,AccordNon=TRUE),IF((I67+I70+I73+I76+I79+I82)>M54*DepDir_Plaf,M54*DepDir_Plaf,I67+I70+I73+I76+I79+I82),I67+I70+I73+I76+I79+I82))","v":0}]
[]
[null,null,null,null,null,null,null,null,"Dépenses liées à la mise en œuvre de moyens humains, techniques ou organisationnels destinées à compenser le handicap, à la formation des salariés bénéficiaires de l'obligation d'emploi pour permettre leur maintien dans l'emploi et leur reconversion professionnelle."]
[]
[]
[null,null,null,null,null,null,null,null,"Dépenses liées aux prestations d'accompagnement des personnes handicapées bénéficiaires de l'obligation d'emploi et à la formation des salariés de l'entreprise au handicap."]
[]
[]
[null,null,null,null,null,null,null,null,"Dépenses déductibles liées à la participation à des événements"]
[]
[]
[null,null,null,null,null,null,null,null,"Dépenses déductibles liées aux partenariats avec des associations"]
[]
[]
[null,null,null,null,null,null,null,null,"Dépenses déductibles liées aux actions concourant à la professionnalisation et aux achats auprès des EA, ESAT, TIH\n"]
[]
[]
[]
[]
[null,null,null,null,null,null,null,null,"IV. Contribution nette avant écrêtement"]
[null,null,null,null,null,null,null,null,null,null,null,null,"Ce montant est à déclarer en DSN"]
[null,null,null,null,null,null,null,null,null,null,null,null,{"$f":"IFERROR(IF(MontantBrut_AvDed-M61-M64-M67<0,0,MontantBrut_AvDed-M61-M64-M67),0)","v":0}]
[]
[null,null,null,null,null,null,null,null,"V. Contribution nette après écrêtement"]
[null,null,null,null,null,null,null,null,"MESURES TRANSITOIRES"]
[null,null,null,null,null,null,null,null,"Montant de la contribution de l’ensemble de l'entreprise de l'année N-1",null,null,null,"Montant de contribution net après ecrêtement \nsoit le MONTANT A DECLARER EN DSN"]
[null,null,null,null,null,null,null,null,null,null,null,null,{"$f":"IF(MontantNet_AprDed<=Contribution_an_passe,MontantNet_AprDed,ROUND((IF(AND(MontantNet_AprDed-Contribution_an_passe>10000,MontantNet_AprDed-Contribution_an_passe<=100000),Contribution_an_passe+((MontantNet_AprDed-Contribution_an_passe)-((10000*0.3)+((MontantNet_AprDed-Contribution_an_passe)-10000)*0.5)),IF(MontantNet_AprDed-Contribution_an_passe>100000,Contribution_an_passe+((MontantNet_AprDed-Contribution_an_passe)-((10000*0.3)+((100000-10000)*0.5)+((MontantNet_AprDed-Contribution_an_passe)-100000)*0.7)),Contribution_an_passe+((MontantNet_AprDed-Contribution_an_passe)-(MontantNet_AprDed-Contribution_an_passe)*0.3)))),2))","v":0}]
[null,null,null,null,null,null,null,null,{"$f":"IF(Contribution_an_passe=\"\",\"La réponse à cette question est obligatoire\",\"\")","v":"La réponse à cette question est obligatoire"}]
[null,null,null,null,null,null,null,null,null,null,null,null,"Montant du budget de l'accord (pour les entreprises sous accord uniquement)"]
[null,null,null,null,null,null,null,null,null,null,null,null,{"$f":"IF(AccordOui=TRUE,M93,\"\")","v":""}]
[]
[]
[null,null,null,null,null,null,null,null,"VI. Evolution prévisionnelle de la contribution à comportement inchangé"]
[]
[]
[]
[]
[]
[null,null,null,null,null,null,null,null,null,null,null,null,"Montant de contribution net après ecrêtement pour la période de mise en œuvre des modalités transitoires"]
[]
[]
[null,null,null,null,null,null,null,null,null,null,null,2020,{"$f":"M93","v":0}]
[null,null,null,null,null,null,null,null,null,null,null,2021,{"$f":"M93+((MontantNet_AprDed-M93)*0.2)","v":0}]
[null,null,null,null,null,null,null,null,null,null,null,2022,{"$f":"M109+((MontantNet_AprDed-M109)*0.25)","v":0}]
[null,null,null,null,null,null,null,null,null,null,null,2023,{"$f":"M110+((MontantNet_AprDed-M110)*0.34)","v":0}]
[null,null,null,null,null,null,null,null,null,null,null,2024,{"$f":"M111+((MontantNet_AprDed-M111)*0.5)","v":0}]
[null,null,null,null,null,null,null,null,null,null,null,2025,{"$f":"M112+((MontantNet_AprDed-M112)*1)","v":0}]

{"sheet":"Déclaration 2021 sur 2022","index":2,"n_rows":113,"n_cols":14,"rows_kept":113,"cut":false,"hidden":false,"merged":[[9,0,9,4],[62,8,62,9],[3,5,4,12],[14,8,14,12],[20,8,20,9],[25,8,25,9],[33,8,34,12],[36,8,36,9],[40,8,41,12],[43,8,43,9],[46,8,46,9],[59,8,59,9],[60,8,60,9],[80,8,80,9],[63,8,63,9],[65,8,65,9],[66,8,66,9],[68,8,68,9],[69,8,69,9],[71,8,71,9],[72,8,72,9],[74,8,74,9],[75,8,75,9],[77,8,77,9],[78,8,78,9],[98,8,99,12],[104,12,106,12],[81,8,81,9],[85,8,85,12],[89,8,89,12],[91,8,91,9],[92,8,92,9],[93,8,93,9]]}
[]
[]
[]
[null,null,null,null,null,"Dans un souci de maintien et suivi des mises à jour du simulateur, il est recommandé de s’adresser exclusivement à l’Agefiph et pour toute question sur ce fichier merci de contacter reformeoeth@agefiph.asso.fr"]
[]
[]
[null,null,null,"<<",null,null,null,null,null,null,null,null,null,">>"]
[]
[null,null,null,null,null,null,null,null,null,null,"Année d'exercice :",null,2021]
["Accès onglets",null,null,null,null,null,null,null,"Effectif Moyen Annuel de l'entreprise",null,null,null,"Objectif d'emploi de travailleurs handicapés"]
[null,null,null,null,null,null,null,null,null,{"$f":"IF(I11<20,\"L'effectif saisi doit être supérieur ou égal à 20\",\"\")","v":"L'effectif saisi doit être supérieur ou égal à 20"},null,null,{"$f":"IF(I11<20,0,ROUNDDOWN(I11*Objemploi_2,0))","v":0}]
[]
[]
[]
[null,null,null,null,null,null,null,null,"I . Calcul de l'effectif moyen annuel de bénéficiaire(s) de l'obligation d'emploi "]
[]
[null,null,null,null,null,null,null,null,null,null,null,null,"Nombre BOETH total employés"]
[null,null,null,null,null,null,null,null,null,null,null,null,{"$f":"ROUND(I23+ROUND((J23*Survalo),2)+I28+ROUND((J28*Survalo),2),2)","v":0}]
[]
[]
[null,null,null,null,null,null,null,null,"Effectifs de BOETH dans l'entreprise",null,null,null,"Montant de la déduction lié à l'embauche de bénéficiaire(s) âgé(s) de MOINS de 50 ans"]
[null,null,null,null,null,null,null,null,"=>âgés de moins de 50 ans","=>âgés de 50 ans et plus",null,null,{"$f":"ROUND(IFERROR(I23*Coefficient_2021*SHB_2021,0),2)","v":0}]
[null,null,null,null,null,null,null,null,null,null,null,null,"Montant de la déduction lié à l'embauche de bénéficiaire(s) âgé(s) de 50 ans et PLUS"]
[null,null,null,null,null,null,null,null,null,null,null,null,{"$f":"ROUND(IFERROR(J23*Survalo*Coefficient_2021*SHB_2021,0),2)","v":0}]
[]
[null,null,null,null,null,null,null,null,"Bénéficiaires de l'OETH intérimaires ou mis à disposition dans l'entreprise",null,null,null,"Montant de la déduction lié à l'embauche de bénéficiaire(s) externe(s) âgé(s) de MOINS de 50 ans"]
[null,null,null,null,null,null,null,null,"=>âgés de moins de 50 ans","=>âgés de 50 ans et plus",null,null,{"$f":"ROUND(IFERROR(I28*Coefficient_2021*SHB_2021,0),2)","v":0}]
[null,null,null,null,null,null,null,null,null,null,null,null,"Montant de la déduction lié à l'embauche de bénéficiaire(s) externe(s) âgé(s) de 50 ans et PLUS"]
[null,null,null,null,null,null,null,null,null,null,null,null,{"$f":"ROUND(IFERROR(J28*Survalo*Coefficient_2021*SHB_2021,0),2)","v":0}]
[]
[null,null,null,null,null,null,null,null,null,null,null,null,"Taux d'emploi"]
[null,null,null,null,null,null,null,null,null,null,null,null,{"$f":"ROUND(IF(ISERROR(('Déclaration 2021 sur 2022'!M18/'Déclaration 2021 sur 2022'!I11)*100),0,('Déclaration 2021 sur 2022'!M18/'Déclaration 2021 sur 2022'!I11)*100),2)","v":0},"%"]
[]
[null,null,null,null,null,null,null,null,"II . Mise en place d'un accord agrée d'entreprise, de groupe ou de branche sur l'emploi des personnes handicapées"]
[]
[]
[null,null,null,null,null,null,null,null,"Votre entreprise est-elle concernée par un accord agréé ?",null,null,null,"Accord"]
[null,null,null,null,null,null,null,null,null,null,null,null,{"$f":"IF(AccordOui_2=TRUE,\"Oui\",IF(AccordNon_2=TRUE,\"Non\",IF(AND(AccordNon_2=FALSE,AccordOui_2=FALSE),\"Vous devez coché une case\",\"\")))","v":"Non"}]
[null,null,null,null,null,null,null,null,{"$f":"IF(AND(AccordNon_2=TRUE,AccordOui_2=TRUE),\"Une seule case doit être cochée\",\"\")","v":""}]
[]
[null,null,null,null,null,null,null,null,"III . Détermination du coefficient de l'entreprise "]
[]
[]
[null,null,null,null,null,null,null,null,"Avez-vous accueilli des BOETH au cours des 4 dernières années (depuis 2018)",null,null,null,"Nombre de BOETH manquants"]
[null,null,null,null,null,null,null,null,null,null,{"$f":"IF(AND(BOETH4ansNon_2=FALSE,BOETH4ansOui_2=FALSE),\"Veuillez cocher une case\",IF(AND(BOETH4ansNon_2=TRUE,BOETH4ansOui_2=TRUE),\"Une seule case doit être cochée\",\"\"))","v":""},null,{"$f":"IF((M11-M18)<0,0,M11-M18)","v":0}]
[]
[null,null,null,null,null,null,null,null,{"$f":"\"Votre entreprise a-t-elle eu recours à des montant de sous-traitance avec le STPA au cours des 4 dernières années (depuis 2018) pour un montant minimum de \"&SHB_2021*600&\" €\"","v":"Votre entreprise a-t-elle eu recours à des montant de sous-traitance avec le STPA au cours des 4 dernières années (depuis 2018) pour un montant minimum de 6288 €"},null,null,null,"Coefficient de votre entreprise "]
[null,null,null,null,null,null,null,null,null,null,{"$f":"IF(AND(Sous_traitance4ansNon_2=FALSE,Sous_traitance4ansOui_2=FALSE),\"Veuillez cocher une case\",IF(AND(Sous_traitance4ansNon_2=TRUE,Sous_traitance4ansOui_2=TRUE),\"Une seule case doit être cochée\",\"\"))","v":""},null,{"$f":"Coefficient_2021","v":"Non assujetti"}]
[]
[]
[]
[null,null,null,null,null,null,null,null,"IV. Contribution brute avant déductions"]
[null,null,null,null,null,null,null,null,null,null,null,null,"Ce montant est à déclarer en DSN"]
[null,null,null,null,null,null,null,null,null,null,null,null,{"$f":"IFERROR(IF((M45*Coefficient_2021*SHB_2021)<0,0,M45*Coefficient_2021*SHB_2021),0)","v":0}]
[]
[]
[null,null,null,null,null,null,null,null,"V. Déductions"]
[]
[]
[null,null,null,null,null,null,null,null,"Effectif moyen annuel de personnes relevant d'un ECAP",null,null,null,"Montant de la déduction lié aux ECAP"]
[null,null,null,null,null,null,null,null,null,null,null,null,{"$f":"IF(I61>I11,\"L'effectif d'ECAP ne peut pas être supérieur à l'effectif total de l'entreprise\",I61*17*SHB_2021)","v":0}]
[]
[null,null,null,null,null,null,null,null,"Montant de sous traitance Esat/EA/TIH/EPS non plafonné\n(30% du coût de la main d'oeuvre)",null,null,null,"Montant de la déduction lié à la sous-traitance"]
[null,null,null,null,null,null,null,null,null,null,null,null,{"$f":"IF(AND(M32<3,I64>M54*SsTrait_Plaf_inf3),M54*SsTrait_Plaf_inf3,IF(AND(M32>=3,I64>M54*Sstrait_Plaf≥3),M54*Sstrait_Plaf≥3,I64))","v":0}]
[null,null,null,null,null,null,null,null,{"$f":"IF(AND(I64>=600*SHB_2021,Sous_traitance4ansOui_2=FALSE),\"Cochez oui à la question de la sous-traitance pour la détermination du coefficient\",\"\")","v":""}]
[null,null,null,null,null,null,null,null,"Dépenses liées à la réalisation de diagnostics et de travaux d'accessibilité pour les bénéficiaires de l'obligation d'emploi.\n",null,null,null,"Montant de la déduction lié aux dépenses directes"]
[null,null,null,null,null,null,null,null,null,null,null,null,{"$f":"IF(AND(AccordOui_2=TRUE,AccordNon_2=FALSE),0,IF(AND(AccordOui_2=FALSE,AccordNon_2=TRUE),IF((I67+I70+I73+I76+I79+I82)>M54*DepDir_Plaf,M54*DepDir_Plaf,I67+I70+I73+I76+I79+I82),I67+I70+I73+I76+I79+I82))","v":0}]
[]
[null,null,null,null,null,null,null,null,"Dépenses liées à la mise en œuvre de moyens humains, techniques ou organisationnels destinées à compenser le handicap, à la formation des salariés bénéficiaires de l'obligation d'emploi pour permettre leur maintien dans l'emploi et leur reconversion professionnelle."]
[]
[]
[null,null,null,null,null,null,null,null,"Dépenses liées aux prestations d'accompagnement des personnes handicapées bénéficiaires de l'obligation d'emploi et à la formation des salariés de l'entreprise au handicap."]
[]
[]
[null,null,null,null,null,null,null,null,"Dépenses déductibles liées à la participation à des événements"]
[]
[]
[null,null,null,null,null,null,null,null,"Dépenses déductibles liées aux partenariats avec des associations"]
[]
[]
[null,null,null,null,null,null,null,null,"Dépenses déductibles liées aux actions concourant à la professionnalisation et aux achats auprès des EA, ESAT, TIH\n"]
[]
[]
[]
[]
[null,null,null,null,null,null,null,null,"IV. Contribution nette avant écrêtement"]
[null,null,null,null,null,null,null,null,null,null,null,null,"Ce montant est à déclarer en DSN"]
[null,null,null,null,null,null,null,null,null,null,null,null,{"$f":"IFERROR(IF(MontantBrut_AvDed_2-M61-M64-M67<0,0,MontantBrut_AvDed_2-M61-M64-M67),0)","v":0}]
[]
[null,null,null,null,null,null,null,null,"V. Contribution nette après écrêtement"]
[null,null,null,null,null,null,null,null,"MESURES TRANSITOIRES"]
[null,null,null,null,null,null,null,null,"Montant de la contribution de l’ensemble de l'entreprise de l'année N-1",null,null,null,"Montant de contribution net après ecrêtement \nsoit le MONTANT A DECLARER EN DSN"]
[null,null,null,null,null,null,null,null,null,null,null,null,{"$f":"IF(MontantNet_AprDed_2<=Contribution_an_passe_2,MontantNet_AprDed_2,Contribution_an_passe_2+((MontantNet_AprDed_2-Contribution_an_passe_2)*0.2))","v":0}]
[null,null,null,null,null,null,null,null,{"$f":"IF(Contribution_an_passe_2=\"\",\"La réponse à cette question est obligatoire\",\"\")","v":"La réponse à cette question est obligatoire"}]
[null,null,null,null,null,null,null,null,null,null,null,null,"Montant du budget de l'accord (pour les entreprises sous accord uniquement)"]
[null,null,null,null,null,null,null,null,null,null,null,null,{"$f":"IF(AccordOui_2=TRUE,M93,\"\")","v":""}]
[]
[]
[null,null,null,null,null,null,null,null,"VI. Evolution prévisionnelle de la contribution à comportement inchangé"]
[]
[]
[]
[]
[]
[null,null,null,null,null,null,null,null,null,null,null,null,"Montant de contribution net après ecrêtement pour la période de mise en œuvre des modalités transitoires"]
[]
[]
[null,null,null,null,null,null,null,null,null,null,null,null,null,2020]
[null,null,null,null,null,null,null,null,null,null,null,2021,{"$f":"M93","v":0}]
[null,null,null,null,null,null,null,null,null,null,null,2022,{"$f":"M109+((MontantNet_AprDed_2-M109)*0.25)","v":0}]
[null,null,null,null,null,null,null,null,null,null,null,2023,{"$f":"M110+((MontantNet_AprDed_2-M110)*0.34)","v":0}]
[null,null,null,null,null,null,null,null,null,null,null,2024,{"$f":"M111+((MontantNet_AprDed_2-M111)*0.5)","v":0}]
[null,null,null,null,null,null,null,null,null,null,null,2025,{"$f":"M112+((MontantNet_AprDed_2-M112)*1)","v":0}]

{"sheet":"Déclaration 2022 sur 2023","index":3,"n_rows":113,"n_cols":30,"rows_kept":113,"cut":false,"hidden":false,"merged":[[78,8,78,9],[9,0,9,4],[62,8,62,9],[3,5,4,12],[14,8,14,12],[20,8,20,9],[25,8,25,9],[33,8,34,12],[36,8,36,9],[40,8,41,12],[43,8,43,9],[46,8,46,9],[59,8,59,9],[60,8,60,9],[104,12,106,12],[81,8,81,9],[85,8,85,12],[89,8,89,12],[91,8,91,9],[92,8,92,9],[93,8,93,9],[2,24,3,29],[4,24,8,29],[9,24,9,29],[10,24,10,27],[98,8,99,12],[80,8,80,9],[63,8,63,9],[65,8,65,9],[66,8,66,9],[68,8,68,9],[69,8,69,9],[71,8,71,9],[72,8,72,9],[74,8,74,9],[75,8,75,9],[77,8,77,9],[14,24,15,24],[14,25,15,25],[14,26,14,28],[16,24,17,24],[16,26,17,26],[16,27,17,27],[16,28,17,28],[30,29,31,29],[28,24,29,24],[28,25,29,25],[28,26,29,26],[28,27,29,27],[28,28,29,28],[30,24,31,24],[30,25,31,25],[30,26,31,26],[30,27,31,27],[30,28,31,28],[11,24,12,29],[40,24,41,29],[43,24,44,29],[32,29,33,29],[34,24,35,24],[34,25,35,25],[34,26,35,26],[34,27,35,27],[34,28,35,28],[34,29,35,29],[32,24,33,24],[32,25,33,25],[32,26,33,26],[32,27,33,27],[32,28,33,28],[28,29,29,29]]}
[]
[]
[null,null,null,null,null,null,null,null,null,null,null,null,null,null,null,null,null,null,null,null,null,null,null,null,"Vous devez déclarer en DSN pour la DOETH annuelle : "]
[null,null,null,null,null,"Dans un souci de maintien et suivi des mises à jour du simulateur, il est recommandé de s’adresser exclusivement à l’Agefiph et pour toute question sur ce fichier merci de contacter reformeoeth@agefiph.asso.fr"]
[null,null,null,null,null,null,null,null,null,null,null,null,null,null,null,null,null,null,null,null,null,null,null,null,"Rappel : Votre organisme social, URSSAF ou MSA, vous adresse le 15 mars au plus tard une notification des effectifs moyens annuels (EMA) servant  au calcul de l'obligation d'emploi (EMA d'assujetissement, EMA ECAP et EMA Boeth). Vous devez déclarer chaque mois en DSN vos salariés (pour l'EMA assujettissement en ETP) avec le code métier PCS (qui permettra de générer l'EMA ECAP) et préciser obligatoirement si le salarié est reconnu Boeth (EMA Boeth) "]
[]
[null,null,null,"<<",null,null,null,null,null,null,null,null,null,">>"]
[]
[null,null,null,null,null,null,null,null,null,null,"Année d'exercice :",null,2022]
["Accès onglets",null,null,null,null,null,null,null,"Effectif Moyen Annuel de l'entreprise",null,null,null,"Objectif d'emploi de travailleurs handicapés",null,null,null,null,null,null,null,null,null,null,null,"Déclaration annuelle en DSN : seules les informations ci-dessous sont demandées en DSN pour votre DOETH. Les autres informations à renseigner dans le simulateur servent à calculer le montant de la contribution en appliquant les différentes régles de calcul."]
[null,null,null,null,null,null,null,null,null,{"$f":"IF(I11<20,\"L'effectif saisi doit être supérieur ou égal à 20\",\"\")","v":"L'effectif saisi doit être supérieur ou égal à 20"},null,null,{"$f":"IF(I11<20,0,ROUNDDOWN(I11*Objemploi_3,0))","v":0},null,null,null,null,null,null,null,null,null,null,null,null,null,null,null,"Le Smic à utiliser pour la contribution 2022 est celui en vigueur au 31/12/2022 : ",11.07]
[null,null,null,null,null,null,null,null,null,null,null,null,null,null,null,null,null,null,null,null,null,null,null,null,"Pour mémoire : une entreprise qui est créée ou qui passe le seuil de 20 salariés à partir du 1er janvier 2020, bénéficie d’une période de neutralisation  de  5 ans avant d’être assujettie à l’obligation d’emploi des travailleurs handicapés et aucune contribution n’est due pendant la période."]
[]
[]
[null,null,null,null,null,null,null,null,"I . Calcul de l'effectif moyen annuel de bénéficiaire(s) de l'obligation d'emploi ",null,null,null,null,null,null,null,null,null,null,null,null,null,null,null,"Intitulé/thème","Vous avez indiqué dans le simulateur","Vous devez déclarer en DSN, en précisant le millésime de rattachement : année ",null,null,{"$f":"M9","v":2022}]
[null,null,null,null,null,null,null,null,null,null,null,null,null,null,null,null,null,null,null,null,null,null,null,null,null,null,"DSN- Code bloc/rubrique","DSN- intitulé bloc/rubrique","DSN- Code énuméré","Valeur à déclarer"]
[null,null,null,null,null,null,null,null,null,null,null,null,"Nombre BOETH total employés",null,null,null,null,null,null,null,null,null,null,null,"Effectif Boeth externe ETP  (+ et -50 ans,) : entreprises de travail temporaire, groupement employeurs, associations intermédiaires, agences de mannequins et entreprises de travail à temps partagé","En ETP","S21.G00.13.002","Type BOETH","\"01 - BOETH intérimaires\" ; \"02 - BOETH salariés d'un groupement d'employeurs mis à disposition» ; \"03 - BOETH stagiaires n’ayant pas fait l’objet d’une déclaration nominative au préalable \" ; 04 - BOETH salariés d’une association intermédiaire mis à disposition \" ; \"05 - BOETH salariés d’une agence de mannequin mis à disposition\" ; \"06 - BOETH salariés d’une entreprise de travail à temps partagé (ETTP) mis à disposition\""," \"Total en ETP valorisé sénior, à répartir dans les codes selon  votre cas\""]
[null,null,null,null,null,null,null,null,null,null,null,null,{"$f":"ROUND(I23+ROUND((J23*Survalo),2)+I28+ROUND((J28*Survalo),2),2)","v":0},null,null,null,null,null,null,null,null,null,null,null,null,{"$f":"I28+J28","v":0},null,null,null,{"$f":"I28+(J28*1.5)","v":0}]
[null,null,null,null,null,null,null,null,null,null,null,null,null,null,null,null,null,null,null,null,null,null,null,null,"Accord agréé de branche, de groupe ou d'entreprise",{"$f":"M38","v":"Non"},"S21.G00.13.001","Accord agréé OETH ","liste déroulante*","Sélectionner le code dans la liste déroulante"]
[null,null,null,null,null,null,null,null,null,null,null,null,null,null,null,null,null,null,null,null,null,null,null,null,"ECAP",{"$f":"I61","v":0},"S21.G00.82.002 ","Code cotisation ","valeur 060 – Déduction ECAP",{"$f":"M61","v":0}]
[null,null,null,null,null,null,null,null,"Effectifs de BOETH dans l'entreprise en ETP",null,null,null,"Montant de la déduction lié à l'embauche de bénéficiaire(s) âgé(s) de MOINS de 50 ans",null,null,null,null,null,null,null,null,null,null,null,"Sous traitance (coût main d'œuvre)",{"$f":"I64","v":0},"S21.G00.82.002","Code cotisation","valeur 061 – Déduction de sous-traitance (EA, ESAT, TIH, EPS si le salarié porté est BOETH)",{"$f":"Z21","v":0}]
[null,null,null,null,null,null,null,null,"=>âgés de moins de 50 ans","=>âgés de 50 ans et plus   ",null,null,{"$f":"ROUND(IFERROR(I23*Coefficient_2022*SHB_2022,0),2)","v":0},null,null,null,null,null,null,null,null,null,null,null,"Dépenses déductibles (accessibilité)",{"$f":"I67","v":0},"S21.G00.82.002","Code cotisation","valeur 062 - Dépense déductible liée aux travaux d’accessibilité",0]
[null,null,null,null,null,null,null,null,null,null,null,null,"Montant de la déduction lié à l'embauche de bénéficiaire(s) âgé(s) de 50 ans et PLUS",null,null,null,null,null,null,null,null,null,null,null,"Dépenses déductibles (maintien reconversion)",{"$f":"I70","v":0},"S21.G00.82.002","Code cotisation","valeur 063 - Dépense déductible liée au maintien et à la reconversion professionnelle",0]
[null,null,null,null,null,null,null,null,null,null,null,null,{"$f":"ROUND(IFERROR(J23*Survalo*Coefficient_2022*SHB_2022,0),2)","v":0},null,null,null,null,null,null,null,null,null,null,null,"Dépenses déductibles (accompagnement sensibilisation)",{"$f":"I73","v":0},"S21.G00.82.002","Code cotisation","valeur 064 - Dépense déductible liée aux prestations d’accompagnement et de sensibilisation",0]
[null,null,null,null,null,null,null,null,null,null,null,null,null,null,null,null,null,null,null,null,null,null,null,null,"Dépenses déductibles (participation évenements)",{"$f":"I76","v":0},"S21.G00.82.002","Code cotisation","valeur 071 - Dépense déductible liée à la participation à des événements",0]
[null,null,null,null,null,null,null,null,"Bénéficiaires de l'OETH Externe en ETP (intérim, groupement employeur, mannequinat, temps partagé, association intermédiaire) en ETP",null,null,null,"Montant de la déduction lié à l'embauche de bénéficiaire(s) externe(s) âgé(s) de MOINS de 50 ans",null,null,null,null,null,null,null,null,null,null,null,"Dépenses déductibles (partenariat association)",{"$f":"I79","v":0},"S21.G00.82.002","Code cotisation","valeur 072 - Dépense déductible liée aux partenariats avec des associations",0]
[null,null,null,null,null,null,null,null,"=>âgés de moins de 50 ans","=>âgés de 50 ans et plus     ",null,null,{"$f":"ROUND(IFERROR(I28*Coefficient_2022*SHB_2022,0),2)","v":0},null,null,null,null,null,null,null,null,null,null,null,"Dépenses déductibles (actions professionnalisation/achats EA-ESAT-TIH)",{"$f":"I82","v":0},"S21.G00.82.002","Code cotisation","valeur 073 - Dépenses déductibles liées aux actions concourant à la professionnalisation et aux achats auprès des EA, ESAT, TIH",0]
[null,null,null,null,null,null,null,null,null,null,null,null,"Montant de la déduction lié à l'embauche de bénéficiaire(s) externe(s) âgé(s) de 50 ans et PLUS",null,null,null,null,null,null,null,null,null,null,null,"Contribution Brute","/","S21.G00.82.065","Code cotisation","\"065- Contribution OETH brute avant déductions\"",{"$f":"MontantBrut_AvDed_3","v":0}]
[null,null,null,null,null,null,null,null,null,null,null,null,{"$f":"ROUND(IFERROR(J28*Survalo*Coefficient_2022*SHB_2022,0),2)","v":0},null,null,null,null,null,null,null,null,null,null,null,"Contribution Nette avant écrêtement","/","S21.G00.82.066","Code cotisation","\"066 - Contribution OETH nette avant écrêtement\"",{"$f":"MontantNet_AprDed_3","v":0}]
[]
[null,null,null,null,null,null,null,null,null,null,null,null,"Taux d'emploi",null,null,null,null,null,null,null,null,null,null,null,"Contribution Nette après écrêtement","/","S21.G00.82.067","Code cotisation","\"067 - Contribution OETH nette après écrêtement\"",{"$f":"M93","v":0}]
[null,null,null,null,null,null,null,null,null,null,null,null,{"$f":"ROUND(IF(ISERROR(('Déclaration 2022 sur 2023'!M18/'Déclaration 2022 sur 2023'!I11)*100),0,('Déclaration 2022 sur 2023'!M18/'Déclaration 2022 sur 2023'!I11)*100),2)","v":0},"%"]
[null,null,null,null,null,null,null,null,null,null,null,null,null,null,null,null,null,null,null,null,null,null,null,null,"Contribution Due","/","S21.G00.82.068","Code cotisation","\"068- Contribution OETH réelle due\"",{"$f":"IF(Z19=\"Non\",AD31,0)","v":0}]
[null,null,null,null,null,null,null,null,"II . Mise en place d'un accord agrée d'entreprise, de groupe ou de branche sur l'emploi des personnes handicapées"]
[null,null,null,null,null,null,null,null,null,null,null,null,null,null,null,null,null,null,null,null,null,null,null,null,"CTP contribution agrégée si versement à l'URSSAF","/","S21.G00.23 004","Cotisation agrégée ","« Montant assiette - S21.G00.23.004 »",{"$f":"AD33","v":0}]
[]
[null,null,null,null,null,null,null,null,"Votre entreprise est-elle concernée par un accord agréé ?",null,null,null,"Accord"]
[null,null,null,null,null,null,null,null,null,null,null,null,{"$f":"IF(AccordOui_3=TRUE,\"Oui\",IF(AccordNon_3=TRUE,\"Non\",IF(AND(AccordNon_3=FALSE,AccordOui_3=FALSE),\"Vous devez coché une case\",\"\")))","v":"Non"},null,null,null,null,null,null,null,null,null,null,null,"Si versement à la CCMSA","/","S21.G00.20 005","Versement organisme de protection sociale","« Montant du versement - S21.G00.20.005 »",{"$f":"AD33","v":0}]
[null,null,null,null,null,null,null,null,{"$f":"IF(AND(AccordNon_3=TRUE,AccordOui_3=TRUE),\"Une seule case doit être cochée\",\"\")","v":""}]
[]
[null,null,null,null,null,null,null,null,"III . Détermination du coefficient de l'entreprise ",null,null,null,null,null,null,null,null,null,null,null,null,null,null,null,"Des corrections sont possibles ultérieurement à la déclaration. Se reporter aux fiches consignes DSN sur net entreprises relatives aux régularisations :                                                                  https://net-entreprises.custhelp.com/app/answers/detail_dsn/a_id/2427 "]
[]
[]
[null,null,null,null,null,null,null,null,"Avez-vous accueilli des BOETH au cours des 4 dernières années (depuis 2019)",null,null,null,"Nombre de BOETH manquants",null,null,null,null,null,null,null,null,null,null,null,"* Dans le cas où un accord est introuvable dans la table, il convient de renseigner la valeur d’échappement « D00000000009 - ACCORD AGREE NON PRESENT DANS LA TABLE ». Dans ce cas, il est demandé d’en informer son référent DDETS afin qu’une correction de la liste soit opérée."]
[null,null,null,null,null,null,null,null,null,null,{"$f":"IF(AND(BOETH4ansNon_3=FALSE,BOETH4ansOui_3=FALSE),\"Veuillez cocher une case\",IF(AND(BOETH4ansNon_3=TRUE,BOETH4ansOui_3=TRUE),\"Une seule case doit être cochée\",\"\"))","v":""},null,{"$f":"IF((M11-M18)<0,0,M11-M18)","v":0}]
[]
[null,null,null,null,null,null,null,null,{"$f":"\"Votre entreprise a-t-elle eu recours à des montant de sous-traitance avec le STPA au cours des 4 dernières années (depuis 2019) pour un montant minimum de \"&SHB_2022*600&\" €\"","v":"Votre entreprise a-t-elle eu recours à des montant de sous-traitance avec le STPA au cours des 4 dernières années (depuis 2019) pour un montant minimum de 6642 €"},null,null,null,"Coefficient de votre entreprise "]
[null,null,null,null,null,null,null,null,null,null,{"$f":"IF(AND(Sous_traitance4ansNon_3=FALSE,Sous_traitance4ansOui_3=FALSE),\"Veuillez cocher une case\",IF(AND(Sous_traitance4ansNon_3=TRUE,Sous_traitance4ansOui_3=TRUE),\"Une seule case doit être cochée\",\"\"))","v":""},null,{"$f":"Coefficient_2022","v":"Non assujetti"}]
[]
[]
[]
[null,null,null,null,null,null,null,null,"IV. Contribution brute avant déductions"]
[null,null,null,null,null,null,null,null,null,null,null,null,"Ce montant est à déclarer en DSN"]
[null,null,null,null,null,null,null,null,null,null,null,null,{"$f":"IFERROR(IF((M45*Coefficient_2022*SHB_2022)<0,0,M45*Coefficient_2022*SHB_2022),0)","v":0}]
[]
[]
[null,null,null,null,null,null,null,null,"V. Déductions"]
[]
[]
[null,null,null,null,null,null,null,null,"Effectif moyen annuel de personnes relevant d'un ECAP",null,null,null,"Montant de la déduction lié aux ECAP"]
[null,null,null,null,null,null,null,null,null,null,null,null,{"$f":"IF(I61>I11,\"L'effectif d'ECAP ne peut pas être supérieur à l'effectif total de l'entreprise\",I61*17*SHB_2022)","v":0}]
[]
[null,null,null,null,null,null,null,null,"Montant de sous traitance Esat/EA/TIH/EPS non plafonné\n(30% du coût de la main d'oeuvre)",null,null,null,"Montant de la déduction lié à la sous-traitance"]
[null,null,null,null,null,null,null,null,null,null,null,null,{"$f":"IF(AND(M32<3,I64>M54*SsTrait_Plaf_inf3),M54*SsTrait_Plaf_inf3,IF(AND(M32>=3,I64>M54*Sstrait_Plaf≥3),M54*Sstrait_Plaf≥3,I64))","v":0}]
[null,null,null,null,null,null,null,null,{"$f":"IF(AND(I64>=600*SHB_2022,Sous_traitance4ansOui_3=FALSE),\"Cochez oui à la question de la sous-traitance pour la détermination du coefficient\",\"\")","v":""}]
[null,null,null,null,null,null,null,null,"Dépenses liées à la réalisation de diagnostics et de travaux d'accessibilité pour les bénéficiaires de l'obligation d'emploi.\n",null,null,null,"Montant de la déduction lié aux dépenses directes"]
[null,null,null,null,null,null,null,null,null,null,null,null,{"$f":"IF(AND(AccordOui_3=TRUE,AccordNon_3=FALSE),0,IF(AND(AccordOui_3=FALSE,AccordNon_3=TRUE),IF((I67+I70+I73+I76+I79+I82)>M54*DepDir_Plaf,M54*DepDir_Plaf,I67+I70+I73+I76+I79+I82),I67+I70+I73+I76+I79+I82))","v":0}]
[]
[null,null,null,null,null,null,null,null,"Dépenses liées à la mise en œuvre de moyens humains, techniques ou organisationnels destinées à compenser le handicap, à la formation des salariés bénéficiaires de l'obligation d'emploi pour permettre leur maintien dans l'emploi et leur reconversion professionnelle."]
[]
[]
[null,null,null,null,null,null,null,null,"Dépenses liées aux prestations d'accompagnement des personnes handicapées bénéficiaires de l'obligation d'emploi et à la formation des salariés de l'entreprise au handicap."]
[]
[]
[null,null,null,null,null,null,null,null,"Dépenses déductibles liées à la participation à des événements"]
[]
[]
[null,null,null,null,null,null,null,null,"Dépenses déductibles liées aux partenariats avec des associations"]
[]
[]
[null,null,null,null,null,null,null,null,"Dépenses déductibles liées aux actions concourant à la professionnalisation et aux achats auprès des EA, ESAT, TIH\n"]
[]
[]
[]
[]
[null,null,null,null,null,null,null,null,"IV. Contribution nette avant écrêtement"]
[null,null,null,null,null,null,null,null,null,null,null,null,"Ce montant est à déclarer en DSN"]
[null,null,null,null,null,null,null,null,null,null,null,null,{"$f":"IFERROR(IF(MontantBrut_AvDed_3-M61-M64-M67<0,0,MontantBrut_AvDed_3-M61-M64-M67),0)","v":0}]
[]
[null,null,null,null,null,null,null,null,"V. Contribution nette après écrêtement"]
[null,null,null,null,null,null,null,null,"MESURES TRANSITOIRES"]
[null,null,null,null,null,null,null,null,"Montant de la contribution de l’ensemble de l'entreprise de l'année N-1",null,null,null,"Montant de contribution net après ecrêtement \nsoit le MONTANT A DECLARER EN DSN"]
[null,null,null,null,null,null,null,null,null,null,null,null,{"$f":"IF(Contribution_an_passe_3>=MontantNet_AprDed_3,MontantNet_AprDed_3,Contribution_an_passe_3+((MontantNet_AprDed_3-Contribution_an_passe_3)*0.25))","v":0}]
[null,null,null,null,null,null,null,null,{"$f":"IF(Contribution_an_passe_3=\"\",\"La réponse à cette question est obligatoire\",\"\")","v":"La réponse à cette question est obligatoire"}]
[null,null,null,null,null,null,null,null,null,null,null,null,"Montant du budget de l'accord (pour les entreprises sous accord uniquement)"]
[null,null,null,null,null,null,null,null,null,null,null,null,{"$f":"IF(AccordOui_3=TRUE,M93,\"\")","v":""}]
[]
[]
[null,null,null,null,null,null,null,null,"VI. Evolution prévisionnelle de la contribution à comportement inchangé"]
[]
[]
[]
[]
[]
[null,null,null,null,null,null,null,null,null,null,null,null,"Montant de contribution net après ecrêtement pour la période de mise en œuvre des modalités transitoires"]
[]
[]
[null,null,null,null,null,null,null,null,null,null,null,null,null,2020]
[]
[null,null,null,null,null,null,null,null,null,null,null,2022,{"$f":"M93","v":0}]
[null,null,null,null,null,null,null,null,null,null,null,2023,{"$f":"M110+((MontantNet_AprDed_3-M110)*0.34)","v":0}]
[null,null,null,null,null,null,null,null,null,null,null,2024,{"$f":"M111+((MontantNet_AprDed_3-M111)*0.5)","v":0}]
[null,null,null,null,null,null,null,null,null,null,null,2025,{"$f":"M112+((MontantNet_AprDed_3-M112)*1)","v":0}]

{"sheet":"Déclaration 2023 sur 2024","index":4,"n_rows":116,"n_cols":14,"rows_kept":116,"cut":false,"hidden":false,"merged":[[9,0,9,4],[62,8,62,9],[3,5,4,12],[14,8,14,12],[20,8,20,9],[25,8,25,9],[33,8,34,12],[36,8,36,9],[40,8,41,12],[43,8,43,9],[46,8,46,9],[59,8,59,9],[60,8,60,9],[80,8,80,9],[63,8,63,9],[65,8,65,9],[66,8,66,9],[68,8,68,9],[69,8,69,9],[71,8,71,9],[72,8,72,9],[74,8,74,9],[75,8,75,9],[77,8,77,9],[78,8,78,9],[98,8,99,12],[104,12,106,12],[81,8,81,9],[85,8,85,12],[89,8,89,12],[91,8,91,9],[92,8,92,9],[93,8,93,9]]}
[]
[]
[]
[null,null,null,null,null,"Dans un souci de maintien et suivi des mises à jour du simulateur, il est recommandé de s’adresser exclusivement à l’Agefiph et pour toute question sur ce fichier merci de contacter reformeoeth@agefiph.asso.fr"]
[]
[]
[null,null,null,"<<",null,null,null,null,null,null,null,null,null,">>"]
[]
[null,null,null,null,null,null,null,null,null,null,"Année d'exercice :",null,2023]
["Accès onglets",null,null,null,null,null,null,null,"Effectif Moyen Annuel de l'entreprise",null,null,null,"Objectif d'emploi de travailleurs handicapés"]
[null,null,null,null,null,null,null,null,null,{"$f":"IF(I11<20,\"L'effectif saisi doit être supérieur ou égal à 20\",\"\")","v":"L'effectif saisi doit être supérieur ou égal à 20"},null,null,{"$f":"IF(I11<20,0,ROUNDDOWN(I11*Objemploi_4,0))","v":0}]
[]
[]
[]
[null,null,null,null,null,null,null,null,"I . Calcul de l'effectif moyen annuel de bénéficiaire(s) de l'obligation d'emploi "]
[]
[null,null,null,null,null,null,null,null,null,null,null,null,"Nombre BOETH total employés"]
[null,null,null,null,null,null,null,null,null,null,null,null,{"$f":"ROUND(I23+ROUND((J23*Survalo),2)+I28+ROUND((J28*Survalo),2),2)","v":0}]
[]
[]
[null,null,null,null,null,null,null,null,"Effectifs de BOETH dans l'entreprise",null,null,null,"Montant de la déduction lié à l'embauche de bénéficiaire(s) âgé(s) de MOINS de 50 ans"]
[null,null,null,null,null,null,null,null,"=>âgés de moins de 50 ans","=>âgés de 50 ans et plus",null,null,{"$f":"ROUND(IFERROR(I23*Coefficient_2023*SHB_2023,0),2)","v":0}]
[null,null,null,null,null,null,null,null,null,null,null,null,"Montant de la déduction lié à l'embauche de bénéficiaire(s) âgé(s) de 50 ans et PLUS"]
[null,null,null,null,null,null,null,null,null,null,null,null,{"$f":"ROUND(IFERROR(J23*Survalo*Coefficient_2023*SHB_2023,0),2)","v":0}]
[]
[null,null,null,null,null,null,null,null,"Bénéficiaires de l'OETH intérimaires ou mis à disposition dans l'entreprise",null,null,null,"Montant de la déduction lié à l'embauche de bénéficiaire(s) externe(s) âgé(s) de MOINS de 50 ans"]
[null,null,null,null,null,null,null,null,"=>âgés de moins de 50 ans","=>âgés de 50 ans et plus",null,null,{"$f":"ROUND(IFERROR(I28*Coefficient_2023*SHB_2023,0),2)","v":0}]
[null,null,null,null,null,null,null,null,null,null,null,null,"Montant de la déduction lié à l'embauche de bénéficiaire(s) externe(s) âgé(s) de 50 ans et PLUS"]
[null,null,null,null,null,null,null,null,null,null,null,null,{"$f":"ROUND(IFERROR(J28*Survalo*Coefficient_2023*SHB_2023,0),2)","v":0}]
[]
[null,null,null,null,null,null,null,null,null,null,null,null,"Taux d'emploi"]
[null,null,null,null,null,null,null,null,null,null,null,null,{"$f":"ROUND(IF(ISERROR(('Déclaration 2023 sur 2024'!M18/'Déclaration 2023 sur 2024'!I11)*100),0,('Déclaration 2023 sur 2024'!M18/'Déclaration 2023 sur 2024'!I11)*100),2)","v":0},"%"]
[]
[null,null,null,null,null,null,null,null,"II . Mise en place d'un accord agrée d'entreprise, de groupe ou de branche sur l'emploi des personnes handicapées"]
[]
[]
[null,null,null,null,null,null,null,null,"Votre entreprise est-elle concernée par un accord agréé ?",null,null,null,"Accord"]
[null,null,null,null,null,null,null,null,null,null,null,null,{"$f":"IF(AccordOui_4=TRUE,\"Oui\",IF(AccordNon_4=TRUE,\"Non\",IF(AND(AccordNon_4=FALSE,AccordOui_4=FALSE),\"Vous devez coché une case\",\"\")))","v":"Non"}]
[null,null,null,null,null,null,null,null,{"$f":"IF(AND(AccordNon_4=TRUE,AccordOui_4=TRUE),\"Une seule case doit être cochée\",\"\")","v":""}]
[]
[null,null,null,null,null,null,null,null,"III . Détermination du coefficient de l'entreprise "]
[]
[]
[null,null,null,null,null,null,null,null,"Avez-vous accueilli des BOETH au cours des 4 dernières années (depuis 2020)",null,null,null,"Nombre de BOETH manquants"]
[null,null,null,null,null,null,null,null,null,null,{"$f":"IF(AND(BOETH4ansNon_4=FALSE,BOETH4ansOui_4=FALSE),\"Veuillez cocher une case\",IF(AND(BOETH4ansNon_4=TRUE,BOETH4ansOui_4=TRUE),\"Une seule case doit être cochée\",\"\"))","v":""},null,{"$f":"IF((M11-M18)<0,0,M11-M18)","v":0}]
[]
[null,null,null,null,null,null,null,null,{"$f":"\"Votre entreprise a-t-elle eu recours à des montant de sous-traitance avec le STPA au cours des 4 dernières années (depuis 2020) pour un montant minimum de \"&SHB_2023*600&\" €\"","v":"Votre entreprise a-t-elle eu recours à des montant de sous-traitance avec le STPA au cours des 4 dernières années (depuis 2020) pour un montant minimum de 6912 €"},null,null,null,"Coefficient de votre entreprise "]
[null,null,null,null,null,null,null,null,null,null,{"$f":"IF(AND(Sous_traitance4ansNon_4=FALSE,Sous_traitance4ansOui_4=FALSE),\"Veuillez cocher une case\",IF(AND(Sous_traitance4ansNon_4=TRUE,Sous_traitance4ansOui_4=TRUE),\"Une seule case doit être cochée\",\"\"))","v":""},null,{"$f":"Coefficient_2023","v":"Non assujetti"}]
[]
[]
[]
[null,null,null,null,null,null,null,null,"IV. Contribution brute avant déductions"]
[null,null,null,null,null,null,null,null,null,null,null,null,"Ce montant est à déclarer en DSN"]
[null,null,null,null,null,null,null,null,null,null,null,null,{"$f":"IFERROR(IF((M45*Coefficient_2023*SHB_2023)<0,0,M45*Coefficient_2023*SHB_2023),0)","v":0}]
[]
[]
[null,null,null,null,null,null,null,null,"V. Déductions"]
[]
[]
[null,null,null,null,null,null,null,null,"Effectif moyen annuel de personnes relevant d'un ECAP",null,null,null,"Montant de la déduction lié aux ECAP"]
[null,null,null,null,null,null,null,null,null,null,null,null,{"$f":"IFERROR(IF(I61>I11,\"L'effectif d'ECAP ne peut pas être supérieur à l'effectif total de l'entreprise\",I61*17*SHB_2023),0)","v":0}]
[]
[null,null,null,null,null,null,null,null,"Montant de sous traitance Esat/EA/TIH/EPS non plafonné\n(30% du coût de la main d'oeuvre)",null,null,null,"Montant de la déduction lié à la sous-traitance"]
[null,null,null,null,null,null,null,null,null,null,null,null,{"$f":"IF(AND(M32<3,I64>M54*SsTrait_Plaf_inf3),M54*SsTrait_Plaf_inf3,IF(AND(M32>=3,I64>M54*Sstrait_Plaf≥3),M54*Sstrait_Plaf≥3,I64))","v":0}]
[null,null,null,null,null,null,null,null,{"$f":"IF(AND(I64>=600*SHB_2023,Sous_traitance4ansOui_4=FALSE),\"Cochez oui à la question de la sous-traitance pour la détermination du coefficient\",\"\")","v":""}]
[null,null,null,null,null,null,null,null,"Dépenses liées à la réalisation de diagnostics et de travaux d'accessibilité pour les bénéficiaires de l'obligation d'emploi.\n",null,null,null,"Montant de la déduction lié aux dépenses directes"]
[null,null,null,null,null,null,null,null,null,null,null,null,{"$f":"IF(AND(AccordOui_4=TRUE,AccordNon_4=FALSE),0,IF(AND(AccordOui_4=FALSE,AccordNon_4=TRUE),IF((I67+I70+I73+I76+I79+I82)>M54*DepDir_Plaf,M54*DepDir_Plaf,I67+I70+I73+I76+I79+I82),I67+I70+I73+I76+I79+I82))","v":0}]
[]
[null,null,null,null,null,null,null,null,"Dépenses liées à la mise en œuvre de moyens humains, techniques ou organisationnels destinées à compenser le handicap, à la formation des salariés bénéficiaires de l'obligation d'emploi pour permettre leur maintien dans l'emploi et leur reconversion professionnelle."]
[]
[]
[null,null,null,null,null,null,null,null,"Dépenses liées aux prestations d'accompagnement des personnes handicapées bénéficiaires de l'obligation d'emploi et à la formation des salariés de l'entreprise au handicap."]
[]
[]
[null,null,null,null,null,null,null,null,"Dépenses déductibles liées à la participation à des événements"]
[]
[]
[null,null,null,null,null,null,null,null,"Dépenses déductibles liées aux partenariats avec des associations"]
[]
[]
[null,null,null,null,null,null,null,null,"Dépenses déductibles liées aux actions concourant à la professionnalisation et aux achats auprès des EA, ESAT, TIH\n"]
[]
[]
[]
[]
[null,null,null,null,null,null,null,null,"IV. Contribution nette avant écrêtement"]
[null,null,null,null,null,null,null,null,null,null,null,null,"Ce montant est à déclarer en DSN"]
[null,null,null,null,null,null,null,null,null,null,null,null,{"$f":"IFERROR(IF(MontantBrut_AvDed_4-M61-M64-M67<0,0,MontantBrut_AvDed_4-M61-M64-M67),0)","v":0}]
[]
[null,null,null,null,null,null,null,null,"V. Contribution nette après écrêtement"]
[null,null,null,null,null,null,null,null,"MESURES TRANSITOIRES"]
[null,null,null,null,null,null,null,null,"Montant de la contribution de l’ensemble de l'entreprise de l'année N-1",null,null,null,"Montant de contribution net après ecrêtement \nsoit le MONTANT A DECLARER EN DSN"]
[null,null,null,null,null,null,null,null,null,null,null,null,{"$f":"IF(Contribution_an_passe_4>=MontantNet_AprDed_4,MontantNet_AprDed_4,Contribution_an_passe_4+((MontantNet_AprDed_4-Contribution_an_passe_4)*0.34))","v":0}]
[null,null,null,null,null,null,null,null,{"$f":"IF(Contribution_an_passe_4=\"\",\"La réponse à cette question est obligatoire\",\"\")","v":"La réponse à cette question est obligatoire"}]
[null,null,null,null,null,null,null,null,null,null,null,null,"Montant du budget de l'accord (pour les entreprises sous accord uniquement)"]
[null,null,null,null,null,null,null,null,null,null,null,null,{"$f":"IF(AccordOui=TRUE,M93,\"\")","v":""}]
[]
[]
[null,null,null,null,null,null,null,null,"VI. Evolution prévisionnelle de la contribution à comportement inchangé"]
[]
[]
[]
[]
[]
[null,null,null,null,null,null,null,null,null,null,null,null,"Montant de contribution net après ecrêtement pour la période de mise en œuvre des modalités transitoires"]
[]
[]
[null,null,null,null,null,null,null,null,null,null,null,null,null,2020]
[]
[]
[null,null,null,null,null,null,null,null,null,null,null,2023,{"$f":"M110+((MontantNet_AprDed_4-M110)*0.34)","v":0}]
[null,null,null,null,null,null,null,null,null,null,null,2024,{"$f":"M111+((MontantNet_AprDed_4-M111)*0.5)","v":0}]
[null,null,null,null,null,null,null,null,null,null,null,2025,{"$f":"M112+((MontantNet_AprDed_4-M112)*1)","v":0}]
[]
[]
[null,null,null,null,null,null,null,null,null,null,null,null," "]

{"sheet":"Déclaration 2024 sur 2025","index":5,"n_rows":96,"n_cols":14,"rows_kept":96,"cut":false,"hidden":false,"merged":[[36,8,36,9],[9,0,9,4],[3,5,4,12],[14,8,14,12],[20,8,20,9],[25,8,25,9],[33,8,34,12],[71,8,71,9],[40,8,41,12],[43,8,43,9],[46,8,46,9],[59,8,59,9],[60,8,60,9],[62,8,62,9],[63,8,63,9],[65,8,65,9],[66,8,66,9],[68,8,68,9],[69,8,69,9],[93,8,93,9],[72,8,72,9],[74,8,74,9],[75,8,75,9],[77,8,77,9],[78,8,78,9],[80,8,80,9],[81,8,81,9],[85,8,85,12],[89,8,89,12],[91,8,91,9],[92,8,92,9]]}
[]
[]
[]
[null,null,null,null,null,"Dans un souci de maintien et suivi des mises à jour du simulateur, il est recommandé de s’adresser exclusivement à l’Agefiph et pour toute question sur ce fichier merci de contacter reformeoeth@agefiph.asso.fr"]
[]
[]
[null,null,null,"<<",null,null,null,null,null,null,null,null,null,">>"]
[]
[null,null,null,null,null,null,null,null,null,null,"Année d'exercice :",null,2024]
["Accès onglets",null,null,null,null,null,null,null,"Effectif Moyen Annuel de l'entreprise",null,null,null,"Objectif d'emploi de travailleurs handicapés"]
[null,null,null,null,null,null,null,null,null,{"$f":"IF(I11<20,\"L'effectif saisi doit être supérieur ou égal à 20\",\"\")","v":"L'effectif saisi doit être supérieur ou égal à 20"},null,null,{"$f":"IF(I11<20,0,ROUNDDOWN(I11*Objemploi_5,0))","v":0}]
[]
[]
[]
[null,null,null,null,null,null,null,null,"I . Calcul de l'effectif moyen annuel de bénéficiaire(s) de l'obligation d'emploi "]
[]
[null,null,null,null,null,null,null,null,null,null,null,null,"Nombre BOETH total employés"]
[null,null,null,null,null,null,null,null,null,null,null,null,{"$f":"ROUND(I23+ROUND((J23*Survalo),2)+I28+ROUND((J28*Survalo),2),2)","v":0}]
[]
[]
[null,null,null,null,null,null,null,null,"Effectifs de BOETH dans l'entreprise",null,null,null,"Montant de la déduction lié à l'embauche de bénéficiaire(s) âgé(s) de MOINS de 50 ans"]
[null,null,null,null,null,null,null,null,"=>âgés de moins de 50 ans","=>âgés de 50 ans et plus",null,null,{"$f":"ROUND(IFERROR(I23*Coefficient_2024*SHB_2024,0),2)","v":0}]
[null,null,null,null,null,null,null,null,null,null,null,null,"Montant de la déduction lié à l'embauche de bénéficiaire(s) âgé(s) de 50 ans et PLUS"]
[null,null,null,null,null,null,null,null,null,null,null,null,{"$f":"ROUND(IFERROR(J23*Survalo*Coefficient_2024*SHB_2024,0),2)","v":0}]
[]
[null,null,null,null,null,null,null,null,"Bénéficiaires de l'OETH intérimaires ou mis à disposition dans l'entreprise",null,null,null,"Montant de la déduction lié à l'embauche de bénéficiaire(s) externe(s) âgé(s) de MOINS de 50 ans"]
[null,null,null,null,null,null,null,null,"=>âgés de moins de 50 ans","=>âgés de 50 ans et plus",null,null,{"$f":"ROUND(IFERROR(I28*Coefficient_2024*SHB_2024,0),2)","v":0}]
[null,null,null,null,null,null,null,null,null,null,null,null,"Montant de la déduction lié à l'embauche de bénéficiaire(s) externe(s) âgé(s) de 50 ans et PLUS"]
[null,null,null,null,null,null,null,null,null,null,null,null,{"$f":"ROUND(IFERROR(J28*Survalo*Coefficient_2024*SHB_2024,0),2)","v":0}]
[]
[null,null,null,null,null,null,null,null,null,null,null,null,"Taux d'emploi"]
[null,null,null,null,null,null,null,null,null,null,null,null,{"$f":"ROUND(IF(ISERROR(('Déclaration 2024 sur 2025'!M18/'Déclaration 2024 sur 2025'!I11)*100),0,('Déclaration 2024 sur 2025'!M18/'Déclaration 2024 sur 2025'!I11)*100),2)","v":0},"%"]
[]
[null,null,null,null,null,null,null,null,"II . Mise en place d'un accord agrée d'entreprise, de groupe ou de branche sur l'emploi des personnes handicapées"]
[]
[]
[null,null,null,null,null,null,null,null,"Votre entreprise est-elle concernée par un accord agréé ?",null,null,null,"Accord"]
[null,null,null,null,null,null,null,null,null,null,null,null,{"$f":"IF(AccordOui_5=TRUE,\"Oui\",IF(AccordNon_5=TRUE,\"Non\",IF(AND(AccordNon_5=FALSE,AccordOui_5=FALSE),\"Vous devez coché une case\",\"\")))","v":"Non"}]
[null,null,null,null,null,null,null,null,{"$f":"IF(AND(AccordNon_5=TRUE,AccordOui_5=TRUE),\"Une seule case doit être cochée\",\"\")","v":""}]
[]
[null,null,null,null,null,null,null,null,"III . Détermination du coefficient de l'entreprise "]
[]
[]
[null,null,null,null,null,null,null,null,"Avez-vous accueilli des BOETH au cours des 4 dernières années (depuis 2021)",null,null,null,"Nombre de BOETH manquants"]
[null,null,null,null,null,null,null,null,null,null,{"$f":"IF(AND(BOETH4ansNon_5=FALSE,BOETH4ansOui_5=FALSE),\"Veuillez cocher une case\",IF(AND(BOETH4ansNon_5=TRUE,BOETH4ansOui_5=TRUE),\"Une seule case doit être cochée\",\"\"))","v":""},null,{"$f":"IF((M11-M18)<0,0,M11-M18)","v":0}]
[]
[null,null,null,null,null,null,null,null,{"$f":"\"Votre entreprise a-t-elle eu recours à des montant de sous-traitance avec le STPA au cours des 4 dernières années (depuis 2021) pour un montant minimum de \"&SHB_2024*600&\" €\"","v":"Votre entreprise a-t-elle eu recours à des montant de sous-traitance avec le STPA au cours des 4 dernières années (depuis 2021) pour un montant minimum de 6912 €"},null,null,null,"Coefficient de votre entreprise "]
[null,null,null,null,null,null,null,null,null,null,{"$f":"IF(AND(Sous_traitance4ansNon_5=FALSE,Sous_traitance4ansOui_5=FALSE),\"Veuillez cocher une case\",IF(AND(Sous_traitance4ansNon_5=TRUE,Sous_traitance4ansOui_5=TRUE),\"Une seule case doit être cochée\",\"\"))","v":""},null,{"$f":"Coefficient_2024","v":"Non assujetti"}]
[]
[]
[]
[null,null,null,null,null,null,null,null,"IV. Contribution brute avant déductions"]
[null,null,null,null,null,null,null,null,null,null,null,null,"Ce montant est à déclarer en DSN"]
[null,null,null,null,null,null,null,null,null,null,null,null,{"$f":"IFERROR(IF((M45*Coefficient_2024*SHB_2024)<0,0,M45*Coefficient_2024*SHB_2024),0)","v":0}]
[]
[]
[null,null,null,null,null,null,null,null,"V. Déductions"]
[]
[]
[null,null,null,null,null,null,null,null,"Effectif moyen annuel de personnes relevant d'un ECAP",null,null,null,"Montant de la déduction lié aux ECAP"]
[null,null,null,null,null,null,null,null,null,null,null,null,{"$f":"IFERROR(IF(I61>I11,\"L'effectif d'ECAP ne peut pas être supérieur à l'effectif total de l'entreprise\",I61*17*SHB_2024),0)","v":0}]
[]
[null,null,null,null,null,null,null,null,"Montant de sous traitance Esat/EA/TIH/EPS non plafonné\n(30% du coût de la main d'oeuvre)",null,null,null,"Montant de la déduction lié à la sous-traitance"]
[null,null,null,null,null,null,null,null,null,null,null,null,{"$f":"IF(AND(M32<3,I64>M54*SsTrait_Plaf_inf3),M54*SsTrait_Plaf_inf3,IF(AND(M32>=3,I64>M54*Sstrait_Plaf≥3),M54*Sstrait_Plaf≥3,I64))","v":0}]
[null,null,null,null,null,null,null,null,{"$f":"IF(AND(I64>=600*SHB_2024,Sous_traitance4ansOui_5=FALSE),\"Cochez oui à la question de la sous-traitance pour la détermination du coefficient\",\"\")","v":""}]
[null,null,null,null,null,null,null,null,"Dépenses liées à la réalisation de diagnostics et de travaux d'accessibilité pour les bénéficiaires de l'obligation d'emploi.\n",null,null,null,"Montant de la déduction lié aux dépenses directes"]
[null,null,null,null,null,null,null,null,null,null,null,null,{"$f":"IF(AND(AccordOui_5=TRUE,AccordNon_5=FALSE),0,IF(AND(AccordOui_5=FALSE,AccordNon_5=TRUE),IF((I67+I70+I73+I76+I79+I82)>M54*DepDir_Plaf,M54*DepDir_Plaf,I67+I70+I73+I76+I79+I82),I67+I70+I73+I76+I79+I82))","v":0}]
[]
[null,null,null,null,null,null,null,null,"Dépenses liées à la mise en œuvre de moyens humains, techniques ou organisationnels destinées à compenser le handicap, à la formation des salariés bénéficiaires de l'obligation d'emploi pour permettre leur maintien dans l'emploi et leur reconversion professionnelle."]
[]
[]
[null,null,null,null,null,null,null,null,"Dépenses liées aux prestations d'accompagnement des personnes handicapées bénéficiaires de l'obligation d'emploi et à la formation des salariés de l'entreprise au handicap."]
[]
[]
[null,null,null,null,null,null,null,null,"Dépenses déductibles liées à la participation à des événements"]
[]
[]
[null,null,null,null,null,null,null,null,"Dépenses déductibles liées aux partenariats avec des associations"]
[]
[]
[null,null,null,null,null,null,null,null,"Dépenses déductibles liées aux actions concourant à la professionnalisation et aux achats auprès des EA, ESAT, TIH\n"]
[]
[]
[]
[]
[null,null,null,null,null,null,null,null,"IV. Contribution nette avant écrêtement"]
[null,null,null,null,null,null,null,null,null,null,null,null,"Ce montant est à déclarer en DSN"]
[null,null,null,null,null,null,null,null,null,null,null,null,{"$f":"IFERROR(IF(MontantBrut_AvDed_5-M61-M64-M67<0,0,MontantBrut_AvDed_5-M61-M64-M67),0)","v":0}]
[]
[null,null,null,null,null,null,null,null,"V. Contribution nette après écrêtement"]
[null,null,null,null,null,null,null,null,"MESURES TRANSITOIRES"]
[null,null,null,null,null,null,null,null,"Montant de la contribution de l’ensemble de l'entreprise de l'année N-1",null,null,null,"Montant de contribution net après ecrêtement \nsoit le MONTANT A DECLARER EN DSN"]
[null,null,null,null,null,null,null,null,{"$f":"'Déclaration 2023 sur 2024'!M93","v":0},null,null,null,{"$f":"IF(Contribution_an_passe_5>=MontantNet_AprDed_5,MontantNet_AprDed_5,Contribution_an_passe_5+((MontantNet_AprDed_5-Contribution_an_passe_5)*0.5))","v":0}]
[null,null,null,null,null,null,null,null,{"$f":"IF(Contribution_an_passe_5=\"\",\"La réponse à cette question est obligatoire\",\"\")","v":""}]
[null,null,null,null,null,null,null,null,null,null,null,null,"Montant du budget de l'accord (pour les entreprises sous accord uniquement)"]
[null,null,null,null,null,null,null,null,null,null,null,null,{"$f":"IF(AccordOui_5=TRUE,M93,\"\")","v":""}]

{"sheet":"Déclaration 2025 sur 2026","index":6,"n_rows":84,"n_cols":18,"rows_kept":84,"cut":false,"hidden":false,"merged":[[36,8,36,9],[9,0,9,4],[3,5,4,12],[14,8,14,12],[20,8,20,9],[25,8,25,9],[33,8,34,12],[77,8,77,12],[81,8,81,12],[72,8,72,9],[71,8,71,9],[40,8,41,12],[43,8,43,9],[46,8,46,9],[59,8,59,9],[60,8,60,9],[62,8,62,9],[63,8,63,9],[65,8,65,9],[66,8,66,9],[68,8,68,9],[69,8,69,9]]}
[null,null,null,null,null,null,null,null,null,null,null,null,null,null,null,null,null,3000]
[null,null,null,null,null,null,null,null,null,null,null,null,null,null,null,null,null,3000]
[null,null,null,null,null,null,null,null,null,null,null,null,null,null,null,null,null,150]
[null,null,null,null,null,"Dans un souci de maintien et suivi des mises à jour du simulateur, il est recommandé de s’adresser exclusivement à l’Agefiph et pour toute question sur ce fichier merci de contacter reformeoeth@agefiph.asso.fr"]
[]
[]
[null,null,null,"<<",null,null,null,null,null,null,null,null,null,">>"]
[]
[null,null,null,null,null,null,null,null,null,null,"Année d'exercice :",null,2025]
["Accès onglets",null,null,null,null,null,null,null,"Effectif Moyen Annuel de l'entreprise",null,null,null,"Objectif d'emploi de travailleurs handicapés"]
[null,null,null,null,null,null,null,null,null,{"$f":"IF(I11<20,\"L'effectif saisi doit être supérieur ou égal à 20\",\"\")","v":"L'effectif saisi doit être supérieur ou égal à 20"},null,null,{"$f":"IF(I11<20,0,ROUNDDOWN(I11*Objemploi_6,0))","v":0}]
[]
[]
[]
[null,null,null,null,null,null,null,null,"I . Calcul de l'effectif moyen annuel de bénéficiaire(s) de l'obligation d'emploi "]
[]
[null,null,null,null,null,null,null,null,null,null,null,null,"Nombre BOETH total employés"]
[null,null,null,null,null,null,null,null,null,null,null,null,{"$f":"ROUND(I23+ROUND((J23*Survalo),2)+I28+ROUND((J28*Survalo),2),2)","v":0}]
[]
[]
[null,null,null,null,null,null,null,null,"Effectifs de BOETH dans l'entreprise",null,null,null,"Montant de la déduction lié à l'embauche de bénéficiaire(s) âgé(s) de MOINS de 50 ans"]
[null,null,null,null,null,null,null,null,"=>âgés de moins de 50 ans","=>âgés de 50 ans et plus",null,null,{"$f":"ROUND(IFERROR(I23*Coefficient_2025*SHB_2025,0),2)","v":0}]
[null,null,null,null,null,null,null,null,null,null,null,null,"Montant de la déduction lié à l'embauche de bénéficiaire(s) âgé(s) de 50 ans et PLUS"]
[null,null,null,null,null,null,null,null,null,null,null,null,{"$f":"ROUND(IFERROR(J23*Survalo*Coefficient_2025*SHB_2025,0),2)","v":0}]
[]
[null,null,null,null,null,null,null,null,"Bénéficiaires de l'OETH intérimaires ou mis à disposition dans l'entreprise",null,null,null,"Montant de la déduction lié à l'embauche de bénéficiaire(s) externe(s) âgé(s) de MOINS de 50 ans"]
[null,null,null,null,null,null,null,null,"=>âgés de moins de 50 ans","=>âgés de 50 ans et plus",null,null,{"$f":"ROUND(IFERROR(I28*Coefficient_2025*SHB_2025,0),2)","v":0}]
[null,null,null,null,null,null,null,null,null,null,null,null,"Montant de la déduction lié à l'embauche de bénéficiaire(s) externe(s) âgé(s) de 50 ans et PLUS"]
[null,null,null,null,null,null,null,null,null,null,null,null,{"$f":"ROUND(IFERROR(J28*Survalo*Coefficient_2025*SHB_2025,0),2)","v":0}]
[]
[null,null,null,null,null,null,null,null,null,null,null,null,"Taux d'emploi"]
[null,null,null,null,null,null,null,null,null,null,null,null,{"$f":"ROUND(IF(ISERROR(('Déclaration 2025 sur 2026'!M18/'Déclaration 2025 sur 2026'!I11)*100),0,('Déclaration 2025 sur 2026'!M18/'Déclaration 2025 sur 2026'!I11)*100),2)","v":0},"%"]
[]
[null,null,null,null,null,null,null,null,"II . Mise en place d'un accord agrée d'entreprise, de groupe ou de branche sur l'emploi des personnes handicapées"]
[]
[]
[null,null,null,null,null,null,null,null,"Votre entreprise est-elle concernée par un accord agréé ?",null,null,null,"Accord"]
[null,null,null,null,null,null,null,null,null,null,null,null,{"$f":"IF(AccordOui_6=TRUE,\"Oui\",IF(AccordNon_6=TRUE,\"Non\",IF(AND(AccordNon_6=FALSE,AccordOui_6=FALSE),\"Vous devez coché une case\",\"\")))","v":"Non"}]
[null,null,null,null,null,null,null,null,{"$f":"IF(AND(AccordNon_6=TRUE,AccordOui_6=TRUE),\"Une seule case doit être cochée\",\"\")","v":""}]
[]
[null,null,null,null,null,null,null,null,"III . Détermination du coefficient de l'entreprise "]
[]
[]
[null,null,null,null,null,null,null,null,"Avez-vous accueilli des BOETH au cours des 4 dernières années (depuis 2022)",null,null,null,"Nombre de BOETH manquants"]
[null,null,null,null,null,null,null,null,null,null,{"$f":"IF(AND(BOETH4ansNon_6=FALSE,BOETH4ansOui_6=FALSE),\"Veuillez cocher une case\",IF(AND(BOETH4ansNon_6=TRUE,BOETH4ansOui_6=TRUE),\"Une seule case doit être cochée\",\"\"))","v":""},null,{"$f":"IF((M11-M18)<0,0,M11-M18)","v":0}]
[]
[null,null,null,null,null,null,null,null,{"$f":"\"Votre entreprise a-t-elle eu recours à des montant de sous-traitance avec le STPA au cours des 4 dernières années (depuis 2022) pour un montant minimum de \"&SHB_2025*600&\" €\"","v":"Votre entreprise a-t-elle eu recours à des montant de sous-traitance avec le STPA au cours des 4 dernières années (depuis 2022) pour un montant minimum de 6912 €"},null,null,null,"Coefficient de votre entreprise "]
[null,null,null,null,null,null,null,null,null,null,{"$f":"IF(AND(Sous_traitance4ansNon_6=FALSE,Sous_traitance4ansOui_6=FALSE),\"Veuillez cocher une case\",IF(AND(Sous_traitance4ansNon_6=TRUE,Sous_traitance4ansOui_6=TRUE),\"Une seule case doit être cochée\",\"\"))","v":""},null,{"$f":"Coefficient_2025","v":"Non assujetti"}]
[]
[]
[]
[null,null,null,null,null,null,null,null,"IV. Contribution brute avant déductions"]
[null,null,null,null,null,null,null,null,null,null,null,null,"Ce montant est à déclarer en DSN"]
[null,null,null,null,null,null,null,null,null,null,null,null,{"$f":"IFERROR(IF((M45*Coefficient_2025*SHB_2025)<0,0,M45*Coefficient_2025*SHB_2025),0)","v":0}]
[]
[]
[null,null,null,null,null,null,null,null,"V. Déductions"]
[]
[]
[null,null,null,null,null,null,null,null,"Effectif moyen annuel de personnes relevant d'un ECAP",null,null,null,"Montant de la déduction lié aux ECAP"]
[null,null,null,null,null,null,null,null,null,null,null,null,{"$f":"IFERROR(IF(I61>I11,\"L'effectif d'ECAP ne peut pas être supérieur à l'effectif total de l'entreprise\",I61*17*SHB_2025),0)","v":0}]
[]
[null,null,null,null,null,null,null,null,"Montant de sous traitance Esat/EA/TIH/EPS non plafonné\n(30% du coût de la main d'oeuvre)",null,null,null,"Montant de la déduction lié à la sous-traitance"]
[null,null,null,null,null,null,null,null,null,null,null,null,{"$f":"IF(AND(M32<3,I64>M54*SsTrait_Plaf_inf3),M54*SsTrait_Plaf_inf3,IF(AND(M32>=3,I64>M54*Sstrait_Plaf≥3),M54*Sstrait_Plaf≥3,I64))","v":0}]
[null,null,null,null,null,null,null,null,{"$f":"IF(AND(I64>=600*SHB_2025,Sous_traitance4ansOui_6=FALSE),\"Cochez oui à la question de la sous-traitance pour la détermination du coefficient\",\"\")","v":""}]
[null,null,null,null,null,null,null,null,"Dépenses liées à la réalisation de diagnostics et de travaux d'accessibilité pour les bénéficiaires de l'obligation d'emploi.\n",null,null,null,"Montant de la déduction lié aux dépenses directes"]
[null,null,null,null,null,null,null,null,null,null,null,null,{"$f":"IF(AND(AccordOui_6=TRUE,AccordNon_6=FALSE),0,IF(AND(AccordOui_6=FALSE,AccordNon_6=TRUE),IF((I67+I70+I73)>M54*DepDir_Plaf,M54*DepDir_Plaf,I67+I70+I73),I67+I70+I73))","v":0}]
[]
[null,null,null,null,null,null,null,null,"Dépenses liées à la mise en œuvre de moyens humains, techniques ou organisationnels destinées à compenser le handicap, à la formation des salariés bénéficiaires de l'obligation d'emploi pour permettre leur maintien dans l'emploi et leur reconversion professionnelle."]
[]
[]
[null,null,null,null,null,null,null,null,"Dépenses liées aux prestations d'accompagnement des personnes handicapées bénéficiaires de l'obligation d'emploi et à la formation des salariés de l'entreprise au handicap."]
[]
[]
[]
[]
[]
[null,null,null,null,null,null,null,null,"IV. Contribution nette"]
[null,null,null,null,null,null,null,null,null,null,null,null,"Ce montant est à déclarer en DSN"]
[null,null,null,null,null,null,null,null,null,null,null,null,{"$f":"IFERROR(IF(MontantBrut_AvDed_6-M61-M64-M67<0,0,MontantBrut_AvDed_6-M61-M64-M67),0)","v":0}]
[]
[null,null,null,null,null,null,null,null,"V. Montant du budget de l'accord"]
[null,null,null,null,null,null,null,null,null,null,null,null,"Montant du budget de l'accord (pour les entreprises sous accord uniquement)"]
[null,null,null,null,null,null,null,null,null,null,null,null,{"$f":"IF(AccordOui=TRUE,MontantNet_AprDed_6,\"\")","v":""}]

{"sheet":"Paramètres","index":7,"n_rows":89,"n_cols":6,"rows_kept":89,"cut":false,"hidden":false,"merged":[[10,1,10,12],[53,4,53,6],[30,2,30,6],[44,2,44,11],[33,2,33,11],[48,2,48,6],[52,2,52,6],[13,5,13,6],[12,2,12,3],[21,2,21,3],[34,5,35,5],[31,2,31,6],[14,5,14,6],[15,5,15,6],[39,2,39,11],[40,2,40,11],[41,2,41,11],[56,2,56,11],[57,5,58,5],[42,2,42,11],[43,2,43,11],[61,2,61,11],[64,5,65,5],[68,2,68,11],[70,2,70,11],[71,5,72,5],[63,2,63,11],[85,5,86,5],[89,2,89,11],[75,2,75,11],[77,2,77,11],[78,5,79,5],[82,2,82,11],[84,2,84,11]]}
[]
[]
[]
[]
[]
[]
[]
[]
[]
[]
[null,"Paramètres du simulateur"]
[]
[null,null,"SMIC ",null,null,"Formule liée à J8 (SHB)"]
[null,null,2020,10.15,null,{"$f":"VLOOKUP('Déclaration 2020 sur 2021'!$M$9,$C$14:$D$19,2,0)","v":10.15}]
[null,null,2021,10.48,null,{"$f":"VLOOKUP('Déclaration 2021 sur 2022'!$M$9,$C$14:$D$19,2,0)","v":10.48}]
[null,null,2022,11.07,null,{"$f":"VLOOKUP('Déclaration 2022 sur 2023'!$M$9,$C$14:$D$19,2,0)","v":11.07}]
[null,null,2023,11.52,null,{"$f":"VLOOKUP('Déclaration 2023 sur 2024'!$M$9,$C$14:$D$19,2,0)","v":11.52}]
[null,null,2024,11.52,null,{"$f":"VLOOKUP('Déclaration 2024 sur 2025'!$M$9,$C$14:$D$19,2,0)","v":11.52}]
[null,null,2025,11.52,null,{"$f":"VLOOKUP('Déclaration 2025 sur 2026'!$M$9,$C$14:$D$19,2,0)","v":11.52}]
[]
[]
[null,null,"Objectif d'emploi ",null,null,"Formule liée à J10 (ObjEmploi)"]
[null,null,2020,0.06,null,{"$f":"VLOOKUP('Déclaration 2020 sur 2021'!M9,Paramètres!$C$23:$D$28,2,0)","v":0.06}]
[null,null,2021,0.06,null,{"$f":"VLOOKUP('Déclaration 2021 sur 2022'!M9,Paramètres!$C$23:$D$28,2,0)","v":0.06}]
[null,null,2022,0.06,null,{"$f":"VLOOKUP('Déclaration 2022 sur 2023'!M9,Paramètres!$C$23:$D$28,2,0)","v":0.06}]
[null,null,2023,0.06,null,{"$f":"VLOOKUP('Déclaration 2023 sur 2024'!M9,Paramètres!$C$23:$D$28,2,0)","v":0.06}]
[null,null,2024,0.06,null,{"$f":"VLOOKUP('Déclaration 2024 sur 2025'!M9,Paramètres!$C$23:$D$28,2,0)","v":0.06}]
[null,null,2025,0.06,null,{"$f":"VLOOKUP('Déclaration 2025 sur 2026'!M9,Paramètres!$C$23:$D$28,2,0)","v":0.06}]
[]
[]
[null,null,"Survalorisation des bénéficiaires âgés de 50 ans et plus (Survalo)"]
[null,null,1.5]
[]
[null,null,"Détermination du coefficient de l'entreprise (Coefficient)"]
[null,null,"Accord",false,true,"VRAI si coché \nFAUX si non coché"]
[null,null,"BOETH4ans",true,false]
[null,null,"Sous-traitance4ans",false,true]
[null,null,"Coche","OUI","NON"]
[]
[null,null,{"$f":"IF(AND('Déclaration 2020 sur 2021'!M18=0,AccordNon=TRUE,BOETH4ansNon=TRUE,Sous_traitance4ansNon=TRUE),1500,IF(AND('Déclaration 2020 sur 2021'!I11>=250,'Déclaration 2020 sur 2021'!I11<=749),\" 500\",IF('Déclaration 2020 sur 2021'!I11>=750,\" 600\",IF('Déclaration 2020 sur 2021'!I11<20,\"Non assujetti\",\" 400\"))))","v":"Non assujetti"}]
[null,null,{"$f":"IF(AND('Déclaration 2021 sur 2022'!M18=0,AccordNon_2=TRUE,BOETH4ansNon_2=TRUE,Sous_traitance4ansNon_2=TRUE),1500,IF(AND('Déclaration 2021 sur 2022'!I11>=250,'Déclaration 2021 sur 2022'!I11<=749),\" 500\",IF('Déclaration 2021 sur 2022'!I11>=750,\" 600\",IF('Déclaration 2021 sur 2022'!I11<20,\"Non assujetti\",\" 400\"))))","v":"Non assujetti"}]
[null,null,{"$f":"IF(AND('Déclaration 2022 sur 2023'!M18=0,AccordNon_3=TRUE,BOETH4ansNon_3=TRUE,Sous_traitance4ansNon_3=TRUE),1500,IF(AND('Déclaration 2022 sur 2023'!I11>=250,'Déclaration 2022 sur 2023'!I11<=749),\" 500\",IF('Déclaration 2022 sur 2023'!I11>=750,\" 600\",IF('Déclaration 2022 sur 2023'!I11<20,\"Non assujetti\",\" 400\"))))","v":"Non assujetti"}]
[null,null,{"$f":"IF(AND('Déclaration 2023 sur 2024'!M18=0,AccordNon_4=TRUE,BOETH4ansNon_4=TRUE,Sous_traitance4ansNon_4=TRUE),1500,IF(AND('Déclaration 2023 sur 2024'!I11>=250,'Déclaration 2023 sur 2024'!I11<=749),\" 500\",IF('Déclaration 2023 sur 2024'!I11>=750,\" 600\",IF('Déclaration 2023 sur 2024'!I11<20,\"Non assujetti\",\" 400\"))))","v":"Non assujetti"}]
[null,null,{"$f":"IF(AND('Déclaration 2024 sur 2025'!M18=0,AccordNon_5=TRUE,BOETH4ansNon_5=TRUE,Sous_traitance4ansNon_5=TRUE),1500,IF(AND('Déclaration 2024 sur 2025'!I11>=250,'Déclaration 2024 sur 2025'!I11<=749),\" 500\",IF('Déclaration 2024 sur 2025'!I11>=750,\" 600\",IF('Déclaration 2024 sur 2025'!I11<20,\"Non assujetti\",\" 400\"))))","v":"Non assujetti"}]
[null,null,{"$f":"IF(AND('Déclaration 2025 sur 2026'!M18=0,AccordNon_6=TRUE,BOETH4ansNon_6=TRUE,Sous_traitance4ansNon_6=TRUE),1500,IF(AND('Déclaration 2025 sur 2026'!I11>=250,'Déclaration 2025 sur 2026'!I11<=749),\" 500\",IF('Déclaration 2025 sur 2026'!I11>=750,\" 600\",IF('Déclaration 2025 sur 2026'!I11<20,\"Non assujetti\",\" 400\"))))","v":"Non assujetti"}]
[]
[]
[]
[null,null,"Détermination du plafond de sous-traitance en fonction du taux d'emploi (SsTrait_Plaf_inf3 et Sstrait_Plaf≥3)"]
[null,null,"Taux emploi ≥ 3",0.75]
[null,null,"Taux emploi < 3",0.5]
[]
[null,null,"Détermination du plafond des dépenses directes"]
[null,null,"Plafond",0.1,"du montant de la contribution"]
[]
[]
[21,null,"Détermination du coefficient de l'entreprise (Coefficient)"]
[null,null,"Accord",false,true,"VRAI si coché \nFAUX si non coché"]
[null,null,"BOETH4ans",true,false]
[null,null,"Sous-traitance4ans",false,true]
[null,null,"Coche","OUI","NON"]
[]
[]
[22,null,"Détermination du coefficient de l'entreprise (Coefficient)"]
[null,null,"Accord",false,true,"VRAI si coché \nFAUX si non coché"]
[null,null,"BOETH4ans",true,false]
[null,null,"Sous-traitance4ans",false,true]
[null,null,"Coche","OUI","NON"]
[]
[]
[23,null,"Détermination du coefficient de l'entreprise (Coefficient)"]
[null,null,"Accord",false,true,"VRAI si coché \nFAUX si non coché"]
[null,null,"BOETH4ans",true,false]
[null,null,"Sous-traitance4ans",false,true]
[null,null,"Coche","OUI","NON"]
[]
[]
[24,null,"Détermination du coefficient de l'entreprise (Coefficient)"]
[null,null,"Accord",false,true,"VRAI si coché \nFAUX si non coché"]
[null,null,"BOETH4ans",true,false]
[null,null,"Sous-traitance4ans",false,true]
[null,null,"Coche","OUI","NON"]
[]
[]
[25,null,"Détermination du coefficient de l'entreprise (Coefficient)"]
[null,null,"Accord",false,true,"VRAI si coché \nFAUX si non coché"]
[null,null,"BOETH4ans",true,false]
[null,null,"Sous-traitance4ans",false,true]
[null,null,"Coche","OUI","NON"]